[Event "Titled Tuesday Blitz February 15 Early 2022"]
[White "Williams, Simon K"]
[Black "Kamsky, Gata"]
[WhiteFideId "404454"]
[BlackFideId "2000024"]
[WhiteElo "2468"]
[BlackElo "2645"]
[Result "0-1"]
[Round "07"]
[TimeControl "180+1"]
[Date "2022.02.15"]
[WhiteClock "0:00:09"]
[BlackClock "0:00:46"]

1. d4 {[%clk 0:03:00]}  d5 {[%clk 0:02:59]} 2. c4 {[%clk 0:02:59]}  c6 {[%clk 0:02:56]} 3. Nc3 {[%clk 0:02:58]}  Nf6 {[%clk 0:02:50]} 4. Nf3 {[%clk 0:02:58]}  a6 {[%clk 0:02:48]} 5. Qc2 {[%clk 0:02:51]}  dxc4 {[%clk 0:02:47]} 6. e4 {[%clk 0:02:52]}  b5 {[%clk 0:02:46]} 7. Be2 {[%clk 0:02:49]}  g6 {[%clk 0:02:42]} 8. O-O {[%clk 0:02:38]}  Bg7 {[%clk 0:02:41]} 9. Bf4 {[%clk 0:02:37]}  O-O {[%clk 0:02:40]} 10. Rad1 {[%clk 0:02:36]}  Nh5 {[%clk 0:02:24]} 11. Bg5 {[%clk 0:02:21]}  Qc7 {[%clk 0:02:16]} 12. Qc1 {[%clk 0:02:04]}  Re8 {[%clk 0:02:09]} 13. Nh4 {[%clk 0:01:44]}  Nf6 {[%clk 0:02:02]} 14. e5 {[%clk 0:01:42]}  Nd5 {[%clk 0:02:01]} 15. Bh6 {[%clk 0:01:38]}  Bh8 {[%clk 0:01:54]} 16. f4 {[%clk 0:01:29]}  Nxc3 {[%clk 0:01:51]} 17. bxc3 {[%clk 0:01:28]}  f5 {[%clk 0:01:43]} 18. g4 {[%clk 0:01:11]}  e6 {[%clk 0:01:43]} 19. Rf2 {[%clk 0:00:58]}  Bg7 {[%clk 0:01:42]} 20. Bxg7 {[%clk 0:00:54]}  Qxg7 {[%clk 0:01:42]} 21. Rg2 {[%clk 0:00:52]}  Ra7 {[%clk 0:01:28]} 22. Kf2 {[%clk 0:00:43]}  Qh6 {[%clk 0:01:20]} 23. Nf3 {[%clk 0:00:38]}  Rf8 {[%clk 0:01:18]} 24. Rdg1 {[%clk 0:00:37]}  fxg4 {[%clk 0:01:15]} 25. Rxg4 {[%clk 0:00:37]}  Raf7 {[%clk 0:01:13]} 26. Ng5 {[%clk 0:00:30]}  Rf5 {[%clk 0:01:13]} 27. h4 {[%clk 0:00:28]}  Nd7 {[%clk 0:01:08]} 28. Bf3 {[%clk 0:00:28]}  Nb6 {[%clk 0:01:03]} 29. Be4 {[%clk 0:00:27]}  Nd5 {[%clk 0:01:02]} 30. Bxf5 {[%clk 0:00:27]}  exf5 {[%clk 0:01:01]} 31. R4g3 {[%clk 0:00:23]}  Qh5 {[%clk 0:00:59]} 32. e6 {[%clk 0:00:20]}  Re8 {[%clk 0:00:48]} 33. Qe1 {[%clk 0:00:19]}  Qxh4 {[%clk 0:00:47]} 34. Nf3 {[%clk 0:00:10]}  Qxf4 {[%clk 0:00:46]} 35. Rxg6+ {[%clk 0:00:09]}  hxg6 {[%clk 0:00:46]} 36. Rxg6+ {[%clk 0:00:09]}  Kh7 {[%clk 0:00:46]} 37. Qg1 {[%clk 0:00:09]}  Qe3+ {[%clk 0:00:46]} 0-1


[Site "https://www.chess.com"]

[Event "Titled Tuesday Blitz February 15 Early 2022"]
[White "Willow, Jonah B"]
[Black "Garriga Cazorla, Pere"]
[WhiteFideId "438804"]
[BlackFideId "32011601"]
[WhiteElo "2261"]
[BlackElo "2458"]
[Result "1-0"]
[Round "07"]
[TimeControl "180+1"]
[Date "2022.02.15"]
[WhiteClock "0:00:19"]
[BlackClock "0:00:01"]

1. e4 {[%clk 0:03:00]}  c5 {[%clk 0:02:58]} 2. Nf3 {[%clk 0:03:01]}  d6 {[%clk 0:02:58]} 3. Nc3 {[%clk 0:03:01]}  a6 {[%clk 0:02:57]} 4. g3 {[%clk 0:03:01]}  g6 {[%clk 0:02:51]} 5. Bg2 {[%clk 0:02:59]}  Bg7 {[%clk 0:02:51]} 6. O-O {[%clk 0:03:00]}  Nc6 {[%clk 0:02:52]} 7. d3 {[%clk 0:03:00]}  b5 {[%clk 0:02:51]} 8. h3 {[%clk 0:02:59]}  b4 {[%clk 0:02:44]} 9. Nd5 {[%clk 0:02:56]}  e6 {[%clk 0:02:42]} 10. Ne3 {[%clk 0:02:53]}  Nge7 {[%clk 0:02:41]} 11. a3 {[%clk 0:02:44]}  bxa3 {[%clk 0:02:25]} 12. Rxa3 {[%clk 0:02:45]}  O-O {[%clk 0:02:25]} 13. c3 {[%clk 0:02:44]}  a5 {[%clk 0:02:25]} 14. d4 {[%clk 0:02:41]}  cxd4 {[%clk 0:02:25]} 15. cxd4 {[%clk 0:02:41]}  Nb4 {[%clk 0:02:23]} 16. Re1 {[%clk 0:02:31]}  Bb7 {[%clk 0:02:23]} 17. Nc4 {[%clk 0:02:26]}  d5 {[%clk 0:02:10]} 18. exd5 {[%clk 0:02:15]}  Nexd5 {[%clk 0:02:07]} 19. Bg5 {[%clk 0:02:14]}  Qc7 {[%clk 0:02:04]} 20. b3 {[%clk 0:02:07]}  a4 {[%clk 0:01:45]} 21. Bd2 {[%clk 0:01:21]}  Rfc8 {[%clk 0:01:40]} 22. Nfe5 {[%clk 0:01:11]}  f6 {[%clk 0:01:19]} 23. Bxb4 {[%clk 0:01:08]}  Nxb4 {[%clk 0:01:12]} 24. Bxb7 {[%clk 0:01:09]}  Qxb7 {[%clk 0:01:12]} 25. Nd6 {[%clk 0:01:09]}  Qc7 {[%clk 0:00:35]} 26. Nxc8 {[%clk 0:00:45]}  fxe5 {[%clk 0:00:34]} 27. Rxa4 {[%clk 0:00:45]}  Rxa4 {[%clk 0:00:27]} 28. bxa4 {[%clk 0:00:46]}  Qxc8 {[%clk 0:00:28]} 29. dxe5 {[%clk 0:00:47]}  Bf8 {[%clk 0:00:25]} 30. a5 {[%clk 0:00:45]}  Nd5 {[%clk 0:00:19]} 31. Qd3 {[%clk 0:00:39]}  Bc5 {[%clk 0:00:17]} 32. Ra1 {[%clk 0:00:29]}  Nb4 {[%clk 0:00:15]} 33. Qe4 {[%clk 0:00:26]}  Qa6 {[%clk 0:00:14]} 34. Kg2 {[%clk 0:00:24]}  Nd3 {[%clk 0:00:14]} 35. Rd1 {[%clk 0:00:21]}  Nxf2 {[%clk 0:00:11]} 36. Rd8+ {[%clk 0:00:21]}  Kg7 {[%clk 0:00:11]} 37. Rd7+ {[%clk 0:00:22]}  Kg8 {[%clk 0:00:10]} 38. Qf3 {[%clk 0:00:19]}  Nd3 {[%clk 0:00:01]} 39. Qf7+ {[%clk 0:00:19]} 1-0


[Site "https://www.chess.com"]

[Event "Titled Tuesday Blitz February 15 Early 2022"]
[White "Winkels, Marcel"]
[Black "Gubanov, Oleg"]
[WhiteFideId "1003887"]
[BlackFideId "14115115"]
[WhiteElo "1900"]
[BlackElo "2080"]
[Result "0-1"]
[Round "07"]
[TimeControl "180+1"]
[Date "2022.02.15"]
[WhiteClock "0:00:01"]
[BlackClock "0:00:42"]

1. e4 {[%clk 0:03:00]}  Nf6 {[%clk 0:02:59]} 2. e5 {[%clk 0:02:59]}  Nd5 {[%clk 0:02:59]} 3. d4 {[%clk 0:02:58]}  d6 {[%clk 0:02:59]} 4. Nf3 {[%clk 0:02:58]}  dxe5 {[%clk 0:03:00]} 5. Nxe5 {[%clk 0:02:58]}  c6 {[%clk 0:03:00]} 6. Be2 {[%clk 0:02:56]}  Bf5 {[%clk 0:03:00]} 7. O-O {[%clk 0:02:54]}  Nd7 {[%clk 0:03:00]} 8. a3 {[%clk 0:02:45]}  Nxe5 {[%clk 0:02:59]} 9. dxe5 {[%clk 0:02:45]}  e6 {[%clk 0:02:58]} 10. c4 {[%clk 0:02:41]}  Nb6 {[%clk 0:02:57]} 11. Nc3 {[%clk 0:02:38]}  Qxd1 {[%clk 0:02:48]} 12. Rxd1 {[%clk 0:02:36]}  Be7 {[%clk 0:02:46]} 13. Be3 {[%clk 0:02:34]}  Rd8 {[%clk 0:02:42]} 14. Rxd8+ {[%clk 0:02:31]}  Kxd8 {[%clk 0:02:43]} 15. Rd1+ {[%clk 0:02:30]}  Kc7 {[%clk 0:02:43]} 16. b4 {[%clk 0:02:26]}  a5 {[%clk 0:02:19]} 17. bxa5 {[%clk 0:02:15]}  Nd7 {[%clk 0:02:18]} 18. Bd3 {[%clk 0:01:48]}  Bxd3 {[%clk 0:02:11]} 19. Rxd3 {[%clk 0:01:48]}  Nxe5 {[%clk 0:02:02]} 20. Bf4 {[%clk 0:01:44]}  f6 {[%clk 0:01:55]} 21. Ne4 {[%clk 0:01:27]}  Ra8 {[%clk 0:01:48]} 22. h3 {[%clk 0:01:09]}  Rxa5 {[%clk 0:01:47]} 23. Bxe5+ {[%clk 0:00:56]}  Rxe5 {[%clk 0:01:45]} 24. Nd2 {[%clk 0:00:51]}  Ra5 {[%clk 0:01:42]} 25. Nb1 {[%clk 0:00:49]}  Ra4 {[%clk 0:01:41]} 26. Rc3 {[%clk 0:00:47]}  Kb6 {[%clk 0:01:20]} 27. Rb3+ {[%clk 0:00:43]}  Kc7 {[%clk 0:01:20]} 28. Rc3 {[%clk 0:00:42]}  Bd6 {[%clk 0:01:19]} 29. Kf1 {[%clk 0:00:41]}  Be5 {[%clk 0:01:17]} 30. Rc2 {[%clk 0:00:39]}  Bd6 {[%clk 0:01:07]} 31. Rc3 {[%clk 0:00:35]}  Ra6 {[%clk 0:01:07]} 32. Ke2 {[%clk 0:00:34]}  Rb6 {[%clk 0:01:07]} 33. Nd2 {[%clk 0:00:33]}  Rb2 {[%clk 0:01:07]} 34. c5 {[%clk 0:00:22]}  Be5 {[%clk 0:01:05]} 35. Rd3 {[%clk 0:00:21]}  Rc2 {[%clk 0:01:02]} 36. g3 {[%clk 0:00:16]}  Rxc5 {[%clk 0:01:01]} 37. f4 {[%clk 0:00:15]}  Bd6 {[%clk 0:00:57]} 38. Ne4 {[%clk 0:00:15]}  Rd5 {[%clk 0:00:57]} 39. Rb3 {[%clk 0:00:14]}  e5 {[%clk 0:00:53]} 40. fxe5 {[%clk 0:00:13]}  Bxe5 {[%clk 0:00:53]} 41. Nd2 {[%clk 0:00:12]}  Rc5 {[%clk 0:00:47]} 42. Kd3 {[%clk 0:00:12]}  Bxg3 {[%clk 0:00:45]} 43. Ne4 {[%clk 0:00:10]}  Rd5+ {[%clk 0:00:45]} 44. Ke3 {[%clk 0:00:08]}  Be5 {[%clk 0:00:44]} 45. Nd2 {[%clk 0:00:05]}  f5 {[%clk 0:00:44]} 46. Nf3 {[%clk 0:00:03]}  Bf6 {[%clk 0:00:43]} 47. Kf4 {[%clk 0:00:02]}  g6 {[%clk 0:00:42]} 48. Ke3 {[%clk 0:00:02]}  Rc5 {[%clk 0:00:42]} 49. Nd4 {[%clk 0:00:01]}  Re5+ {[%clk 0:00:41]} 50. Kd3 {[%clk 0:00:01]}  Rd5 {[%clk 0:00:42]} 0-1


[Site "https://www.chess.com"]

[Event "Titled Tuesday Blitz February 15 Early 2022"]
[White "Yang, Kaiqi"]
[Black "Samadov, Read"]
[WhiteFideId "8604398"]
[BlackFideId "13417444"]
[WhiteElo "2640"]
[BlackElo "2823"]
[Result "0-1"]
[Round "07"]
[TimeControl "180+1"]
[Date "2022.02.15"]
[WhiteClock "0:00:04"]
[BlackClock "0:00:11"]

1. c4 {[%clk 0:03:00]}  e5 {[%clk 0:02:59]} 2. g3 {[%clk 0:03:00]}  Nf6 {[%clk 0:03:00]} 3. Bg2 {[%clk 0:03:00]}  Nc6 {[%clk 0:03:00]} 4. Nc3 {[%clk 0:02:58]}  Bb4 {[%clk 0:02:59]} 5. e4 {[%clk 0:02:55]}  O-O {[%clk 0:02:59]} 6. Nge2 {[%clk 0:02:55]}  a6 {[%clk 0:03:00]} 7. O-O {[%clk 0:02:53]}  b5 {[%clk 0:03:00]} 8. d3 {[%clk 0:02:50]}  bxc4 {[%clk 0:03:00]} 9. dxc4 {[%clk 0:02:50]}  a5 {[%clk 0:02:51]} 10. h3 {[%clk 0:02:36]}  Bc5 {[%clk 0:02:50]} 11. b3 {[%clk 0:02:09]}  d6 {[%clk 0:02:48]} 12. Kh2 {[%clk 0:02:04]}  Re8 {[%clk 0:02:25]} 13. Qd3 {[%clk 0:01:41]}  Bb7 {[%clk 0:02:08]} 14. Be3 {[%clk 0:01:41]}  Nb4 {[%clk 0:02:07]} 15. Qd2 {[%clk 0:01:39]}  Bxe3 {[%clk 0:02:08]} 16. fxe3 {[%clk 0:01:38]}  Nd7 {[%clk 0:01:41]} 17. Nd5 {[%clk 0:01:33]}  Nc5 {[%clk 0:01:20]} 18. Nxb4 {[%clk 0:01:24]}  axb4 {[%clk 0:01:20]} 19. Qxb4 {[%clk 0:01:25]}  Bxe4 {[%clk 0:01:20]} 20. Bxe4 {[%clk 0:01:16]}  Nxe4 {[%clk 0:01:20]} 21. Qb7 {[%clk 0:01:16]}  Nc5 {[%clk 0:01:08]} 22. Qd5 {[%clk 0:01:16]}  Qd7 {[%clk 0:01:03]} 23. Nc3 {[%clk 0:01:13]}  c6 {[%clk 0:01:02]} 24. Qd2 {[%clk 0:01:13]}  Qe6 {[%clk 0:00:57]} 25. Rad1 {[%clk 0:01:07]}  Rad8 {[%clk 0:00:55]} 26. b4 {[%clk 0:01:05]}  Nd7 {[%clk 0:00:43]} 27. Qe2 {[%clk 0:00:52]}  Nb6 {[%clk 0:00:41]} 28. c5 {[%clk 0:00:41]}  dxc5 {[%clk 0:00:41]} 29. bxc5 {[%clk 0:00:42]}  Nc4 {[%clk 0:00:37]} 30. Rxd8 {[%clk 0:00:29]}  Rxd8 {[%clk 0:00:37]} 31. Rd1 {[%clk 0:00:29]}  Rb8 {[%clk 0:00:34]} 32. Rb1 {[%clk 0:00:12]}  Rxb1 {[%clk 0:00:29]} 33. Nxb1 {[%clk 0:00:13]}  Qd5 {[%clk 0:00:29]} 34. a4 {[%clk 0:00:04]}  Qxc5 {[%clk 0:00:28]} 35. Qc2 {[%clk 0:00:04]}  Qd5 {[%clk 0:00:26]} 36. Nc3 {[%clk 0:00:04]}  Qf3 {[%clk 0:00:16]} 37. Qd3 {[%clk 0:00:03]}  Qf2+ {[%clk 0:00:11]} 38. Kh1 {[%clk 0:00:04]}  Qe1+ {[%clk 0:00:11]} 39. Kh2 {[%clk 0:00:04]}  Qf2+ {[%clk 0:00:07]} 40. Kh1 {[%clk 0:00:04]}  Qe1+ {[%clk 0:00:06]} 41. Kh2 {[%clk 0:00:04]}  Qd2+ {[%clk 0:00:06]} 42. Qxd2 {[%clk 0:00:04]}  Nxd2 {[%clk 0:00:07]} 43. a5 {[%clk 0:00:04]}  Nc4 {[%clk 0:00:08]} 44. a6 {[%clk 0:00:05]}  Nb6 {[%clk 0:00:08]} 45. a7 {[%clk 0:00:05]}  Kf8 {[%clk 0:00:08]} 46. Na4 {[%clk 0:00:05]}  Na8 {[%clk 0:00:08]} 47. Kg2 {[%clk 0:00:05]}  Ke7 {[%clk 0:00:09]} 48. Kf3 {[%clk 0:00:05]}  f5 {[%clk 0:00:08]} 49. g4 {[%clk 0:00:05]}  g6 {[%clk 0:00:08]} 50. gxf5 {[%clk 0:00:05]}  gxf5 {[%clk 0:00:09]} 51. Nc5 {[%clk 0:00:04]}  Kd6 {[%clk 0:00:09]} 52. Nd3 {[%clk 0:00:04]}  e4+ {[%clk 0:00:09]} 53. Ke2 {[%clk 0:00:03]}  exd3+ {[%clk 0:00:10]} 54. Kxd3 {[%clk 0:00:03]}  Kd5 {[%clk 0:00:10]} 55. e4+ {[%clk 0:00:03]}  fxe4+ {[%clk 0:00:10]} 56. Ke3 {[%clk 0:00:04]}  c5 {[%clk 0:00:11]} 0-1


[Site "https://www.chess.com"]

[Event "Titled Tuesday Blitz February 15 Early 2022"]
[White "Zaichenko, Daria"]
[Black "Einarsson, Halldor Gretar"]
[WhiteFideId "4197453"]
[BlackFideId "2300150"]
[WhiteElo "2039"]
[BlackElo "2114"]
[Result "1-0"]
[Round "07"]
[TimeControl "180+1"]
[Date "2022.02.15"]
[WhiteClock "0:00:37"]
[BlackClock "0:00:13"]

1. e4 {[%clk 0:02:56]}  e5 {[%clk 0:02:59]} 2. Nf3 {[%clk 0:02:55]}  Nc6 {[%clk 0:02:58]} 3. Bc4 {[%clk 0:02:56]}  Bc5 {[%clk 0:02:56]} 4. d3 {[%clk 0:02:56]}  Nf6 {[%clk 0:02:50]} 5. c3 {[%clk 0:02:56]}  d6 {[%clk 0:02:46]} 6. O-O {[%clk 0:02:56]}  h6 {[%clk 0:02:45]} 7. Bb3 {[%clk 0:02:53]}  Bg4 {[%clk 0:02:42]} 8. Nbd2 {[%clk 0:02:52]}  Qd7 {[%clk 0:02:38]} 9. h3 {[%clk 0:02:49]}  Bh5 {[%clk 0:02:37]} 10. Re1 {[%clk 0:02:40]}  O-O-O {[%clk 0:02:33]} 11. Nf1 {[%clk 0:02:38]}  g5 {[%clk 0:02:20]} 12. Ng3 {[%clk 0:02:33]}  Bg6 {[%clk 0:01:59]} 13. d4 {[%clk 0:02:31]}  exd4 {[%clk 0:01:46]} 14. cxd4 {[%clk 0:02:29]}  Bb4 {[%clk 0:01:46]} 15. Bd2 {[%clk 0:02:28]}  g4 {[%clk 0:01:35]} 16. hxg4 {[%clk 0:02:22]}  Qxg4 {[%clk 0:01:30]} 17. Bxb4 {[%clk 0:02:21]}  Nxb4 {[%clk 0:01:26]} 18. Nd2 {[%clk 0:02:14]}  Nd3 {[%clk 0:01:12]} 19. Qxg4+ {[%clk 0:02:11]}  Nxg4 {[%clk 0:01:11]} 20. Rf1 {[%clk 0:02:07]}  Nxb2 {[%clk 0:01:08]} 21. f3 {[%clk 0:02:04]}  Nf6 {[%clk 0:00:58]} 22. Bc2 {[%clk 0:01:58]}  d5 {[%clk 0:00:51]} 23. Rfc1 {[%clk 0:01:40]}  dxe4 {[%clk 0:00:46]} 24. Rab1 {[%clk 0:01:33]}  Nd3 {[%clk 0:00:37]} 25. Ndxe4 {[%clk 0:01:24]}  Nxc1 {[%clk 0:00:31]} 26. Rxc1 {[%clk 0:01:17]}  Nxe4 {[%clk 0:00:30]} 27. fxe4 {[%clk 0:01:15]}  Rxd4 {[%clk 0:00:30]} 28. Nf5 {[%clk 0:01:13]}  Rd2 {[%clk 0:00:27]} 29. Bb3 {[%clk 0:01:08]}  Re8 {[%clk 0:00:24]} 30. Rc4 {[%clk 0:00:56]}  Bxf5 {[%clk 0:00:23]} 31. exf5 {[%clk 0:00:56]}  Re1+ {[%clk 0:00:22]} 32. Kh2 {[%clk 0:00:56]}  Ree2 {[%clk 0:00:22]} 33. Rg4 {[%clk 0:00:54]}  Re7 {[%clk 0:00:16]} 34. f6 {[%clk 0:00:51]}  Ree2 {[%clk 0:00:15]} 35. Bxf7 {[%clk 0:00:48]}  Rd6 {[%clk 0:00:14]} 36. Rg8+ {[%clk 0:00:38]}  Kd7 {[%clk 0:00:13]} 37. Bh5 {[%clk 0:00:38]}  Rxf6 {[%clk 0:00:13]} 38. Bxe2 {[%clk 0:00:37]} 1-0


[Site "https://www.chess.com"]

[Event "Titled Tuesday Blitz February 15 Early 2022"]
[White "Zavivaeva, Emilia"]
[Black "Crispin Ferreras, Darvi Abraham"]
[WhiteFideId "34127531"]
[BlackFideId "6402771"]
[WhiteElo "1685"]
[BlackElo "2187"]
[Result "0-1"]
[Round "07"]
[TimeControl "180+1"]
[Date "2022.02.15"]
[WhiteClock "0:01:10"]
[BlackClock "0:01:36"]

1. e4 {[%clk 0:02:54]}  c6 {[%clk 0:02:17]} 2. d4 {[%clk 0:02:35]}  d5 {[%clk 0:02:16]} 3. exd5 {[%clk 0:02:32]}  cxd5 {[%clk 0:02:16]} 4. Bd3 {[%clk 0:02:15]}  Nf6 {[%clk 0:02:15]} 5. c3 {[%clk 0:02:15]}  Nc6 {[%clk 0:02:15]} 6. Nf3 {[%clk 0:02:14]}  Bg4 {[%clk 0:02:15]} 7. Bg5 {[%clk 0:02:13]}  e6 {[%clk 0:02:09]} 8. Nbd2 {[%clk 0:02:11]}  Be7 {[%clk 0:02:08]} 9. O-O {[%clk 0:02:08]}  O-O {[%clk 0:02:08]} 10. Qc2 {[%clk 0:02:07]}  h6 {[%clk 0:02:04]} 11. Bf4 {[%clk 0:02:06]}  Rc8 {[%clk 0:02:03]} 12. a3 {[%clk 0:02:04]}  Bd6 {[%clk 0:01:52]} 13. Be5 {[%clk 0:02:01]}  Bxe5 {[%clk 0:01:49]} 14. dxe5 {[%clk 0:01:57]}  Nd7 {[%clk 0:01:48]} 15. Rae1 {[%clk 0:01:56]}  Qc7 {[%clk 0:01:45]} 16. h3 {[%clk 0:01:52]}  Bxf3 {[%clk 0:01:43]} 17. Nxf3 {[%clk 0:01:51]}  Ncxe5 {[%clk 0:01:43]} 18. Nxe5 {[%clk 0:01:49]}  Nxe5 {[%clk 0:01:43]} 19. Be2 {[%clk 0:01:46]}  Ng6 {[%clk 0:01:42]} 20. Qd2 {[%clk 0:01:43]}  Qf4 {[%clk 0:01:40]} 21. Qd3 {[%clk 0:01:31]}  Qg5 {[%clk 0:01:39]} 22. Kh1 {[%clk 0:01:11]}  Nf4 {[%clk 0:01:37]} 23. Qb5 {[%clk 0:01:10]}  Qxg2# {[%clk 0:01:36]} 0-1


[Site "https://www.chess.com"]

[Event "Titled Tuesday Blitz February 15 Early 2022"]
[White "Abramov, Alexander"]
[Black "Zaichenko, Daria"]
[WhiteFideId "4174089"]
[BlackFideId "4197453"]
[WhiteElo "2067"]
[BlackElo "2039"]
[Result "0-1"]
[Round "08"]
[TimeControl "180+1"]
[Date "2022.02.15"]
[WhiteClock "0:00:02"]
[BlackClock "0:00:14"]

1. e4 {[%clk 0:02:51]}  c5 {[%clk 0:02:58]} 2. Nf3 {[%clk 0:02:49]}  Nc6 {[%clk 0:02:53]} 3. d4 {[%clk 0:02:49]}  cxd4 {[%clk 0:02:53]} 4. Nxd4 {[%clk 0:02:50]}  Nf6 {[%clk 0:02:53]} 5. Nc3 {[%clk 0:02:50]}  d6 {[%clk 0:02:53]} 6. Bg5 {[%clk 0:02:49]}  e6 {[%clk 0:02:49]} 7. Qd2 {[%clk 0:02:49]}  a6 {[%clk 0:02:50]} 8. f4 {[%clk 0:02:49]}  Be7 {[%clk 0:02:49]} 9. O-O-O {[%clk 0:02:49]}  Bd7 {[%clk 0:02:49]} 10. Kb1 {[%clk 0:02:23]}  b5 {[%clk 0:02:46]} 11. Bxb5 {[%clk 0:02:20]}  axb5 {[%clk 0:02:41]} 12. Ndxb5 {[%clk 0:02:21]}  Qa5 {[%clk 0:02:37]} 13. Nxd6+ {[%clk 0:02:14]}  Kf8 {[%clk 0:02:30]} 14. Bxf6 {[%clk 0:01:43]}  gxf6 {[%clk 0:02:20]} 15. Nxf7 {[%clk 0:01:42]}  Kxf7 {[%clk 0:02:19]} 16. Qxd7 {[%clk 0:01:41]}  Nb4 {[%clk 0:02:05]} 17. f5 {[%clk 0:01:31]}  Ra6 {[%clk 0:02:02]} 18. a3 {[%clk 0:01:12]}  Rb8 {[%clk 0:01:51]} 19. fxe6+ {[%clk 0:00:59]}  Rxe6 {[%clk 0:01:46]} 20. Nd5 {[%clk 0:00:51]}  Nxd5 {[%clk 0:01:33]} 21. Qxd5 {[%clk 0:00:48]}  Qxa3 {[%clk 0:01:30]} 22. Qa2 {[%clk 0:00:40]}  Qxa2+ {[%clk 0:01:03]} 23. Kxa2 {[%clk 0:00:41]}  Rxe4 {[%clk 0:01:03]} 24. Rhe1 {[%clk 0:00:40]}  Ra4+ {[%clk 0:00:55]} 25. Kb1 {[%clk 0:00:38]}  Ba3 {[%clk 0:00:40]} 26. Rd7+ {[%clk 0:00:32]}  Kg6 {[%clk 0:00:38]} 27. b3 {[%clk 0:00:32]}  Ra6 {[%clk 0:00:37]} 28. Re3 {[%clk 0:00:29]}  Bd6 {[%clk 0:00:31]} 29. Re6 {[%clk 0:00:21]}  Rbb6 {[%clk 0:00:30]} 30. g4 {[%clk 0:00:12]}  Be5 {[%clk 0:00:17]} 31. Rxb6 {[%clk 0:00:11]}  Rxb6 {[%clk 0:00:17]} 32. h4 {[%clk 0:00:06]}  Ra6 {[%clk 0:00:17]} 33. Kc1 {[%clk 0:00:05]}  Bc3 {[%clk 0:00:16]} 34. Kd1 {[%clk 0:00:04]}  Re6 {[%clk 0:00:15]} 35. h5+ {[%clk 0:00:01]}  Kg5 {[%clk 0:00:14]} 36. Rg7+ {[%clk 0:00:02]}  Kf4 {[%clk 0:00:14]} 0-1


[Site "https://www.chess.com"]

[Event "Titled Tuesday Blitz February 15 Early 2022"]
[White "Al-Tarboush, Ward"]
[Black "Agibileg, Uurtsaikh"]
[WhiteFideId "7601450"]
[BlackFideId "4901606"]
[WhiteElo "2276"]
[BlackElo "2205"]
[Result "1-0"]
[Round "08"]
[TimeControl "180+1"]
[Date "2022.02.15"]
[WhiteClock "0:01:37"]
[BlackClock "0:01:07"]

1. e4 {[%clk 0:03:00]}  c5 {[%clk 0:02:59]} 2. Nf3 {[%clk 0:03:01]}  e6 {[%clk 0:02:54]} 3. d4 {[%clk 0:03:01]}  cxd4 {[%clk 0:02:55]} 4. Nxd4 {[%clk 0:03:02]}  Nc6 {[%clk 0:02:56]} 5. Nc3 {[%clk 0:03:02]}  Nf6 {[%clk 0:02:54]} 6. Nxc6 {[%clk 0:03:02]}  bxc6 {[%clk 0:02:54]} 7. e5 {[%clk 0:03:02]}  Nd5 {[%clk 0:02:55]} 8. Ne4 {[%clk 0:03:03]}  Qc7 {[%clk 0:02:55]} 9. f4 {[%clk 0:03:02]}  Qb6 {[%clk 0:02:56]} 10. c4 {[%clk 0:03:02]}  Bb4+ {[%clk 0:02:55]} 11. Ke2 {[%clk 0:03:03]}  Ba6 {[%clk 0:02:56]} 12. Kf3 {[%clk 0:03:02]}  f5 {[%clk 0:02:55]} 13. Nd6+ {[%clk 0:02:55]}  Bxd6 {[%clk 0:02:54]} 14. exd6 {[%clk 0:02:56]}  Nf6 {[%clk 0:02:54]} 15. c5 {[%clk 0:02:48]}  Qb7 {[%clk 0:02:25]} 16. Bxa6 {[%clk 0:02:46]}  Qxa6 {[%clk 0:02:26]} 17. Qd4 {[%clk 0:02:43]}  O-O-O {[%clk 0:02:23]} 18. Be3 {[%clk 0:02:37]}  Kb7 {[%clk 0:02:19]} 19. Rac1 {[%clk 0:02:36]}  Ne4 {[%clk 0:02:14]} 20. Rc4 {[%clk 0:02:33]}  g5 {[%clk 0:02:14]} 21. fxg5 {[%clk 0:02:17]}  e5 {[%clk 0:02:11]} 22. Rb4+ {[%clk 0:02:15]}  Ka8 {[%clk 0:02:10]} 23. Qc4 {[%clk 0:02:15]}  Qxc4 {[%clk 0:01:59]} 24. Rxc4 {[%clk 0:02:16]}  h6 {[%clk 0:01:53]} 25. g4 {[%clk 0:02:16]}  Nxg5+ {[%clk 0:01:51]} 26. Bxg5 {[%clk 0:02:16]}  hxg5 {[%clk 0:01:52]} 27. gxf5 {[%clk 0:02:16]}  Rh3+ {[%clk 0:01:53]} 28. Kg2 {[%clk 0:02:15]}  Rd3 {[%clk 0:01:51]} 29. h4 {[%clk 0:02:07]}  Rd2+ {[%clk 0:01:46]} 30. Kf3 {[%clk 0:02:06]}  Rh8 {[%clk 0:01:32]} 31. h5 {[%clk 0:02:04]}  Rf8 {[%clk 0:01:27]} 32. Ke3 {[%clk 0:01:49]}  Rxb2 {[%clk 0:01:24]} 33. h6 {[%clk 0:01:47]}  Rxa2 {[%clk 0:01:18]} 34. h7 {[%clk 0:01:46]}  Rh8 {[%clk 0:01:15]} 35. f6 {[%clk 0:01:41]}  Rb2 {[%clk 0:01:13]} 36. f7 {[%clk 0:01:37]}  Rbb8 {[%clk 0:01:13]} 37. Rg4 {[%clk 0:01:37]}  Rbf8 {[%clk 0:01:07]} 38. Rxg5 {[%clk 0:01:37]} 1-0


[Site "https://www.chess.com"]